Cogmind - Beta 11 @@@ ROGUE MODE // 2022.04.21 @ 20:01:10 Player: Benkyo Result: Self-destructed Performance ------------- Evolutions (6) 3000 Regions Visited (25) 5000 Robots Destroyed (426) 2130 Value Destroyed (15893) 15893 Prototype IDs (85) 1700 Alien Tech Used (0) 0 Bonus (3615) 3615 TOTAL SCORE: 31338 Bonus ------- High Alert Combat Kills 951 Follower Combat Kills 918 Network Hubs Disabled 200 Aligned with FarCom 300 Met Data Miner 300 Met Imprinter 300 Destroyed Z-Imprinter 1000 Triggered Deep Caves Wall 500 Exposed GOLEM Chamber 500 Friendly Fire -1354 Cogmind --------- Core Integrity 378/1150 Matter 114/300 Energy 100/1100 System Corruption 14% Temperature Cool (0) Movement Core (2550) Ox50 Location -4/Armory Parts ------- > --- POWER (2) -------- (None) > --- PROPULSION (2) --- Assembled Alloy Leg > --- UTILITY (13) ----- Assembled Nanovents Cargo Storage Unit Assembled Biocell Array Enhanced Optical Array Graphene Brace GOLEM Unit > --- WEAPON (2) ------- Enhanced Force Lance > --- INVENTORY (30) --- Centrium Heavy Treads Zionite Biocell (285) Advanced Signal Interpreter Advanced Cloaking Device Improved Component Analysis Suite GOLEM Unit GOLEM Unit GOLEM Unit GOLEM Unit GOLEM Unit GOLEM Unit GOLEM Unit GOLEM Unit GOLEM Unit GOLEM Unit Fusion Bomb Launcher Fusion Bomb Launcher Peak State ------------ > --- POWER ------------ Assembled Flux Generator > --- PROPULSION ------- Assembled Alloy Leg Assembled Alloy Leg > --- UTILITY ---------- Assembled Nanovents Assembled Nanovents Cargo Storage Unit Assembled Biocell Array Assembled Suspension Frame Enhanced Optical Array Assembled Combat Suite Centrium Medium Armor Plating Assembled Alloy Armor Assembled Alloy Armor GOLEM Unit > --- WEAPON ----------- Assembled Focal Cannon Assembled Focal Cannon > --- INVENTORY -------- Centrium Heavy Treads Zionite Biocell Zionite Biocell Centrium Medium Armor Plating Improved Component Analysis Suite GOLEM Unit GOLEM Unit GOLEM Unit GOLEM Unit GOLEM Unit GOLEM Unit GOLEM Unit GOLEM Unit GOLEM Unit GOLEM Unit GOLEM Unit Advanced KE Penetrator Long-range Missile Launcher [Rating: 171] Favorites ----------- Power Assembled Flux Generator Engine Heavy Deuterium Engine Reactor Assembled Flux Generator Propulsion Assembled Alloy Leg Treads Light Treads Leg Assembled Alloy Leg Wheel Compact Wheel Utility Enhanced Optical Array Device GOLEM Unit Storage Cargo Storage Unit Processor Enhanced Optical Array Hackware Hacking Suite Protection Assembled Alloy Armor Weapon Assembled Focal Cannon Energy Gun Improved Medium Laser Energy Cannon Assembled Focal Cannon Ballistic Gun Heavy Assault Rifle Ballistic Cannon Light Cannon Launcher YI-UF0's Doublenader Special Weapon Remote Datajack Impact Weapon Heavy Hammer Slashing Weapon Ripper Piercing Weapon Enhanced Force Lance Special Melee Weapon Datajack Build | -11 -10 -10 -9 -9 -9 -8 -8 -7 -7 -7 -7 -6 -6 -6 -6 -6 -6 -5 -5 -5 -5 -5 -5 -4 -4 ------- Run | Scr Mat Min Mat Min Exi Min Mat Fac Low Low Dat Pro Fac Low Low Zio Dee Pro Fac Ext Cet Arc Hub Fac Arm Slots Evolved 12 | . . . 2 . . . 2 2 . . . . 2 . . . . . 2 . . . . 2 . Power 1 | . . . . . . . . 1 . . . . . . . . . . . . . . . . . Propulsion . | . . . . . . . . . . . . . . . . . . . . . . . . . . Utility 11 | . . . 2 . . . 2 1 . . . . 2 . . . . . 2 . . . . 2 . Weapon . | . . . . . . . . . . . . . . . . . . . . . . . . . . Parts Attached 356 | 2 12 8 44 4 5 11 45 44 6 17 3 14 16 15 15 2 36 9 21 2 6 3 1 7 8 Power 10 | . . 1 1 . 1 . 3 2 1 . . . 1 . . . . . . . . . . . . Engine 10 | . . 1 1 . 1 . 3 2 1 . . . 1 . . . . . . . . . . . . Core . | . . . . . . . . . . . . . . . . . . . . . . . . . . Reactor . | . . . . . . . . . . . . . . . . . . . . . . . . . . Propulsion 64 | . 5 1 7 . . 1 15 26 1 . . 2 4 . . . 1 . . . . . . . 1 Treads 30 | . . . 5 . . 1 9 12 . . . 1 1 . . . . . . . . . . . 1 Leg 1 | . 1 . . . . . . . . . . . . . . . . . . . . . . . . Wheel 33 | . 4 1 2 . . . 6 14 1 . . 1 3 . . . 1 . . . . . . . . Hover . | . . . . . . . . . . . . . . . . . . . . . . . . . . Flight . | . . . . . . . . . . . . . . . . . . . . . . . . . . Utility 209 | 1 5 2 25 4 . 3 14 12 2 15 1 10 9 15 14 . 25 9 21 2 5 3 1 6 5 Device 113 | 1 . 1 12 2 . 3 7 5 2 8 1 5 5 7 8 . 16 9 13 1 2 1 . 1 3 Storage 7 | . 1 . 1 . . . 1 1 . . . . . . . . 1 . . . . . . . 2 Processor 8 | . 1 1 1 . . . 3 . . . . . 1 . . . . . 1 . . . . . . Hackware 7 | . 1 . 1 . . . . . . . . . . . . . . . 4 . . . 1 . . Protection 74 | . 2 . 10 2 . . 3 6 . 7 . 5 3 8 6 . 8 . 3 1 3 2 . 5 . Artifact . | . . . . . . . . . . . . . . . . . . . . . . . . . . Weapon 73 | 1 2 4 11 . 4 7 13 4 2 2 2 2 2 . 1 2 10 . . . 1 . . 1 2 Energy Gun 16 | 1 1 2 3 . 2 4 3 . . . . . . . . . . . . . . . . . . Energy Cannon 18 | . . . . . . . 4 2 . . . . 2 . 1 1 8 . . . . . . . . Ballistic Gun 15 | . 1 . 3 . 1 . 4 1 1 1 1 1 . . . . . . . . 1 . . . . Ballistic Cannon 4 | . . . 2 . . . 2 . . . . . . . . . . . . . . . . . . Launcher 11 | . . 1 . . . 3 . . 1 1 . 1 . . . . 2 . . . . . . 1 1 Special Weapon 2 | . . 1 . . . . . . . . . . . . . 1 . . . . . . . . . Impact Weapon 3 | . . . 2 . . . . 1 . . . . . . . . . . . . . . . . . Slashing Weapon 2 | . . . 1 . 1 . . . . . . . . . . . . . . . . . . . . Piercing Weapon 1 | . . . . . . . . . . . . . . . . . . . . . . . . . 1 Special Melee Weapon 1 | . . . . . . . . . . . 1 . . . . . . . . . . . . . . Unidentified Prototypes 3 | . . 1 . . . . . . . . . . . . . . . 1 . . 1 . . . . Parts Lost 47 | . 1 1 6 . . 3 6 2 1 . . . . . . . 1 . 3 1 . . 2 1 19 Power 4 | . . . 1 . . . 1 . . . . . . . . . . . . . . . . . 2 Propulsion 11 | . 1 . 3 . . 1 2 . 1 . . . . . . . . . . . . . . . 3 Utility 24 | . . 1 1 . . 2 1 1 . . . . . . . . 1 . 2 1 . . 2 1 11 Weapon 8 | . . . 1 . . . 2 1 . . . . . . . . . . 1 . . . . . 3 Highest Loss Streak 11 | . 1 1 4 . . 2 2 2 1 . . . . . . . 1 . 1 1 . . 1 1 11 To Critical Strikes . | . . . . . . . . . . . . . . . . . . . . . . . . . . Average Slot Usage (%) 89 | . 100 100 99 100 99 99 99 96 99 100 100 100 97 93 93 93 79 79 81 76 79 80 82 83 74 Engine 7 | . 14 14 11 11 11 11 9 15 15 15 15 15 13 13 13 13 6 . . . . . . . . Reactor 1 | . . . . . . . . . . . . . . . . . 2 6 4 5 5 5 5 5 4 Treads 4 | . . . 15 22 22 21 15 1 . . . 1 . . . . . . . . . . . . . Leg 4 | . 15 . . . . . . . . . . . . . . . 2 12 11 11 11 11 11 10 8 Wheel 4 | . 12 28 6 . . . 2 13 14 15 15 13 10 6 6 6 4 . . . . . . . . Device 18 | . 4 5 9 9 11 17 18 15 22 19 23 20 24 25 23 26 20 19 18 11 14 16 13 22 26 Storage 9 | . 14 14 11 11 11 11 9 7 7 7 7 7 6 6 6 6 9 13 11 11 11 11 11 10 10 Processor 9 | . . . 11 11 11 11 18 15 15 15 15 15 13 13 13 13 7 6 5 5 5 5 5 5 5 Hackware 1 | . 8 . 10 . . . . . . . . . . . . . . . 7 . . . 2 . . Protection 9 | . 1 8 1 12 11 3 7 11 7 10 7 9 15 14 16 13 10 6 6 16 16 16 17 18 7 Energy Gun 2 | . 14 6 10 11 10 10 5 . . . . . . . . . . . . . . . . . . Energy Cannon 8 | . . . . . . . 11 6 7 7 7 7 11 13 13 11 11 13 11 11 9 6 11 9 7 Ballistic Gun 3 | . 14 14 9 11 10 11 1 7 6 6 5 5 1 . . . . . . . . 3 . . . Naked Turns . | . . . . . . . . . . . . . . . . . . . . . . . . . . Heaviest Build 245 | 14 33 39 58 62 60 63 68 133 131 130 118 136 130 150 158 141 226 230 243 245 245 233 233 239 234 Greatest Support 80 | 20 32 32 40 40 40 40 43 40 32 26 26 26 32 28 28 28 60 60 80 60 60 60 60 80 80 Greatest Overweight (x) 76 | . 1 1 1 1 1 1 2 5 4 4 4 8 4 5 5 5 8 76 4 4 4 3 3 3 3 Average Overweight (x) 2 | . . 1 . 1 1 1 1 2 3 4 4 4 3 4 4 4 4 3 2 3 3 3 3 2 2 Largest Inventory Capacity 30 | 8 15 15 20 20 20 20 20 25 25 25 25 25 25 25 25 25 30 30 30 30 30 30 30 30 30 Average Capacity 24 | 8 14 15 15 20 20 20 20 20 25 25 25 25 25 25 25 25 27 30 30 30 30 30 30 30 30 Most Carried 30 | 8 15 15 20 20 20 20 20 25 25 25 24 25 25 25 25 25 30 30 30 30 30 30 30 30 30 Average Carried 24 | 6 13 14 15 19 19 19 19 20 24 24 23 24 24 24 24 24 24 29 29 29 29 29 29 29 28 Final Capacity 30 | 8 15 15 20 20 20 20 20 25 25 25 25 25 25 25 25 25 30 30 30 30 30 30 30 30 30 Final Carried 30 | 8 14 15 19 20 20 20 20 25 25 24 23 25 25 25 25 25 30 30 27 30 29 30 29 30 28 Class Distribution -------------------- 33% | Hauler-Golem 20% | Mutant 15% | Scavenger-Mutant 12% | Skirmisher 11% | Scavenger-Skirmisher 4% | Hauler-Mutant Dominant Class ---------------- Mutant | -10/Materials Mutant | -10/Mines Scavenger-Mutant | -9/Materials Scavenger-Mutant | -9/Mines Mutant | -9/Exiles Scavenger-Mutant | -8/Mines Scavenger-Mutant | -8/Materials Scavenger-Mutant | -7/Factory Scavenger-Skirmisher | -7/Lower Caves Scavenger-Skirmisher | -7/Lower Caves Scavenger-Skirmisher | -7/Data Miner Scavenger-Skirmisher | -6/Proximity Caves Scavenger-Skirmisher | -6/Factory Scavenger-Skirmisher | -6/Lower Caves Skirmisher | -6/Lower Caves Skirmisher | -6/Zion Mutant | -6/Deep Caves Hauler-Golem | -5/Proximity Caves Hauler-Golem | -5/Factory Hauler-Golem | -5/Extension Hauler-Golem | -5/Cetus Hauler-Golem | -5/Archives Hauler-Golem | -5/Hub_04(d) Hauler-Golem | -4/Factory Hauler-Golem | -4/Armory Resources | -11 -10 -10 -9 -9 -9 -8 -8 -7 -7 -7 -7 -6 -6 -6 -6 -6 -6 -5 -5 -5 -5 -5 -5 -4 -4 ----------- Run | Scr Mat Min Mat Min Exi Min Mat Fac Low Low Dat Pro Fac Low Low Zio Dee Pro Fac Ext Cet Arc Hub Fac Arm Matter Collected 6176 | 241 289 201 732 134 50 362 614 844 235 343 . 246 229 169 167 18 482 80 205 45 80 46 10 155 199 Remotely . | . . . . . . . . . . . . . . . . . . . . . . . . . . Salvage Created 20500 | 106 767 320 1700 387 . 542 1655 1537 162 300 . 623 376 316 122 . 3281 816 2035 838 817 383 863 948 1606 Parts 1010 | 6 45 30 116 20 . 27 111 81 8 17 . 22 22 4 4 . 37 33 128 34 41 12 50 66 96 Haulers Intercepted 14 | . 2 . 6 . . . 4 1 . . . . . . . . . 1 . . . . . . . Recyclers Shooed 12 | 1 . 1 3 . . 1 2 . . . . . 1 . . . . . 2 . . . 1 . . Parts Field Recycled . | . . . . . . . . . . . . . . . . . . . . . . . . . . Retrieved Matter . | . . . . . . . . . . . . . . . . . . . . . . . . . . Parts Self-Destructed 90 | . . . . . . . . . 8 17 . 19 . 3 6 . . 37 . . . . . . . Prevented 4 | . . . . . . . . . . 2 . . . 2 . . . . . . . . . . . Kills | -11 -10 -10 -9 -9 -9 -8 -8 -7 -7 -7 -7 -6 -6 -6 -6 -6 -6 -5 -5 -5 -5 -5 -5 -4 -4 ------- Run | Scr Mat Min Mat Min Exi Min Mat Fac Low Low Dat Pro Fac Low Low Zio Dee Pro Fac Ext Cet Arc Hub Fac Arm Combat Hostiles Destroyed 370 | . 12 9 25 9 . 16 30 19 3 9 . 9 5 5 3 . 63 15 33 12 15 4 12 25 37 Melee 3 | . . . 3 . . . . . . . . . . . . . . . . . . . . . . Guns 79 | . 12 6 21 9 . 6 11 5 . 1 . 5 1 . . . . . . . 1 1 . . . Cannons 200 | . . . 1 . . . 18 14 . 4 . . 4 5 2 . 20 15 33 12 14 3 12 18 25 AOE 78 | . . 3 . . . 10 . . 3 4 . 4 . . . . 35 . . . . . . 7 12 Classes Destroyed 24 | 2 5 2 1 . . . 3 2 1 . . 1 . 1 . . 4 . . . . . . . 2 Worker 22 | . . 1 3 2 . . . 7 . . . . . . . . . . 7 . . . . 2 . Builder 14 | . . 1 2 . . . 2 1 . . . . . . . . . . 2 3 . . 2 1 . Tunneler 9 | 1 . 2 2 . . 1 . 3 . . . . . . . . . . . . . . . . . Hauler 14 | . 2 . 6 . . . 4 1 . . . . . . . . . 1 . . . . . . . Recycler 12 | 1 2 . 2 1 . 1 . 3 . . . . 1 . . . . . 1 . . . . . . Minesweeper 2 | . . . . . . . . . 2 . . . . . . . . . . . . . . . . Mechanic 2 | . . . . . . . 1 1 . . . . . . . . . . . . . . . . . Operator 9 | . 3 . 1 . . . 1 . . . . . 1 . . . . . . 1 . . . 1 1 Watcher 28 | . 3 . 5 . . . 5 2 . . . . . . . . . . 5 1 1 . 3 1 2 Swarmer 98 | . 3 6 6 4 . 7 10 . 3 4 . 8 3 . 2 . . 8 10 1 4 . . 10 9 Saboteur 1 | . . . . . . . . . . . . . . . . . . . . . . . . . 1 Grunt 99 | . 9 3 10 5 . 9 11 9 . 3 . . . 3 . . . 4 2 7 5 . 5 3 11 Brawler 3 | . . . . . . . 1 . . . . . . . . . . . 1 . 1 . . . . Duelist 4 | . . . . . . . . 1 . . . . . . . . . . . . . . . . 3 Sentry 35 | . . . 9 . . . 7 4 . 1 . 1 1 . . . . . 2 2 . 4 1 3 . Specialist 1 | . . . . . . . . . . . . . . . . . . . . . . . . . 1 Hunter 17 | . . . . . . . 1 2 . . . . . . . . . 2 2 1 2 . 4 1 2 Programmer 41 | . . . . . . . . 3 . 1 . . 1 . . . . . 16 . . . 2 8 10 Cetus Guard 3 | . . . . . . . . . . . . . . . . . . . . . 3 . . . . Enhanced Grunt 1 | . . . . . . . . . . . . 1 . . . . . . . . . . . . . Z-Light 1 | . . . . . . . . . . . . . . . . . 1 . . . . . . . . Decomposer 5 | . . . . . . . . . 3 . . 2 . . . . . . . . . . . . . Packrat 3 | . . . . . . . . . . . . 3 . . . . . . . . . . . . . Samaritan 2 | . . . . . . . . . . . . 2 . . . . . . . . . . . . . Assembler 2 | . . . . . . . . . . . . . . . . . 2 . . . . . . . . Assembled 36 | . . . . . . . . . . . . . . . . . 36 . . . . . . . . Golem 26 | . . . . . . . . . . . . . . . . . 25 1 . . . . . . . Butcher 1 | . . . . . . . . . . . . . . 1 . . . . . . . . . . . Guerrilla 1 | . . . . . . . . . . . . . . . . . . . . 1 . . . . . Mutant 2 | . . . . . . . . . . . . . . 1 1 . . . . . . . . . . Best Kill Streak 38 | 1 3 6 7 4 . 4 5 6 3 4 . 4 3 2 2 . 38 5 5 3 9 1 5 14 16 Combat Bots Only 36 | . 3 3 7 4 . 4 4 6 3 4 . 4 3 2 2 . 36 5 5 3 9 1 5 13 16 Max Kills in Single Turn 18 | 1 2 3 2 1 . 4 1 2 2 2 . 2 1 1 1 . 18 1 2 1 1 1 2 2 4 Gunslinging 1 | . . 1 . . . . . . . . . . . . . . . . . . . . . . . Exploded 17 | . . 2 . . . 4 . . 2 2 . 2 . . . . 17 . . . . . . 2 4 Melee 1 | . . . 1 . . . . . . . . . . . . . . . . . . . . . . Uniques/NPCs Destroyed 2 | . . 1 . . . . . . . . . . . . . . 1 . . . . . . . . YI-UF0 (-10/Mines) Z-Imprinter (-6/Deep Caves) Combat | -11 -10 -10 -9 -9 -9 -8 -8 -7 -7 -7 -7 -6 -6 -6 -6 -6 -6 -5 -5 -5 -5 -5 -5 -4 -4 -------- Run | Scr Mat Min Mat Min Exi Min Mat Fac Low Low Dat Pro Fac Low Low Zio Dee Pro Fac Ext Cet Arc Hub Fac Arm Damage Taken 19626 | . 443 203 1130 343 . 696 1533 1762 75 421 . 291 218 275 . . 972 580 1761 329 1543 160 920 1060 4911 Core 2341 | . 100 18 215 64 . 87 144 248 . . . 89 12 14 . . 29 83 196 17 123 . 130 54 718 Absorbed by Shields 495 | . . . . . . . . . . . . . . . . . 348 . 147 . . . . . . Redirected to Shielding 38 | . . . . . . . . . . . . . . . . . 38 . . . . . . . . Regen/Repaired (Parts) 802 | . . . . . . . 234 . . . . . 105 . . . . . . . . . . 463 . Core Remaining (%) 60 | 100 . 52 . . . 8 73 . . . . 51 . . . . . 83 . . . . 53 . . Volleys Fired 1310 | 7 58 49 111 32 . 34 127 108 16 36 . 30 25 15 20 1 220 27 108 46 44 17 41 60 78 Largest 2 | 2 2 2 2 2 . 2 2 2 2 2 . 2 2 2 2 1 2 2 2 2 2 2 2 2 2 Hottest 210 | 60 85 100 91 79 . 92 143 103 70 58 . 58 140 70 140 5 210 50 50 50 60 60 50 68 77 Shots Fired 2214 | 13 112 57 199 60 . 52 234 203 33 57 . 51 44 31 32 1 275 52 195 91 84 29 80 101 128 Gun 744 | 13 112 41 186 60 . 44 111 96 16 23 . 27 6 . . . . . . . 5 4 . . . Cannon 1408 | . . . 13 . . . 123 107 14 31 . 21 38 31 32 . 267 52 195 91 79 25 80 90 119 Launcher 47 | . . 2 . . . 8 . . 3 3 . 3 . . . . 8 . . . . . . 11 9 Special 15 | . . 14 . . . . . . . . . . . . . 1 . . . . . . . . . Kinetic 481 | 7 58 33 104 28 . 20 54 96 16 23 . 27 6 . . . . . . . 5 4 . . . Thermal 1665 | 6 54 22 95 32 . 24 180 107 14 31 . 21 38 31 32 . 247 52 195 91 79 25 80 90 119 Explosive 47 | . . 2 . . . 8 . . 3 3 . 3 . . . . 8 . . . . . . 11 9 Electromagnetic 20 | . . . . . . . . . . . . . . . . . 20 . . . . . . . . Robot Hit Streak 34 | 6 13 7 14 8 . 9 10 20 5 7 . 10 6 7 8 1 34 15 17 10 13 9 11 20 24 Robot Miss Streak 9 | 1 2 4 5 5 . 2 9 3 3 2 . 2 3 1 2 . 4 3 3 3 4 2 2 6 5 Penetration Max 1 | . . . . . . . 1 . . . . . . . . . . . . . . 1 . . . Secondary Targets 8 | . 1 1 3 . . 1 2 . . . . . . . . . . . . . . . . . . Max Gunslinging Chain 1 | . 1 1 1 . . 1 1 . . . . . . . . . . . . . . . . . . Shots Hit Robots 1381 | 10 75 25 136 36 . 39 142 138 17 31 1 35 17 22 3 1 200 34 120 45 61 22 39 54 78 Core Hits 843 | 3 35 20 63 15 . 33 66 58 14 15 . 22 12 8 4 . 211 19 44 18 24 8 25 63 63 Critical Kills 12 | . . . . . . . 2 1 . . . . . . 1 . 6 . . . 1 1 . . . Critical Parts Destroyed 2 | . . . . . . . . 1 . . . . . . . . . . . . . 1 . . . Critical Strikes 33 | . 3 . 5 4 . 1 8 2 . . . . . . 1 . 6 . . . 1 2 . . . Burn 19 | . 3 . 5 4 . 1 6 . . . . . . . . . . . . . . . . . . Meltdown 8 | . . . . . . . 1 . . . . . . . 1 . 6 . . . . . . . . Destroy 6 | . . . . . . . 1 2 . . . . . . . . . . . . 1 2 . . . Melee Attacks 17 | . . . 10 . . . . 1 . . 1 . . . . . . . . . . . . . 5 Impact 5 | . . . 4 . . . . 1 . . . . . . . . . . . . . . . . . Slashing 6 | . . . 6 . . . . . . . . . . . . . . . . . . . . . . Piercing 5 | . . . . . . . . . . . . . . . . . . . . . . . . . 5 Sneak Attacks 1 | . . . . . . . . . . . 1 . . . . . . . . . . . . . . Combat Hostiles . | . . . . . . . . . . . . . . . . . . . . . . . . . . Follow-up Attacks . | . . . . . . . . . . . . . . . . . . . . . . . . . . Damage Inflicted 52608 | 121 1107 749 2453 609 . 1315 3139 3493 589 1080 . 1112 531 710 159 . 9403 1673 6488 2086 2790 838 2243 3578 6342 Guns 8965 | 121 1107 331 2156 609 . 579 1612 1356 172 357 . 417 54 . . . . . . . 38 56 . . . Cannons 34121 | . . . 125 . . . 1522 2137 191 342 . 370 477 710 159 . 6606 1673 6488 2086 2752 782 1954 2203 3544 Explosions 9257 | . . 418 . . . 736 . . 226 381 . 325 . . . . 2797 . . . . . 252 1375 2747 Melee 223 | . . . 172 . . . . . . . . . . . . . . . . . . . . . 51 Ramming 42 | . . . . . . . 5 . . . . . . . . . . . . . . . 37 . . Kinetic 5332 | 88 450 252 1006 200 . 233 653 1356 172 357 . 417 54 . . . . . . . 38 56 . . . Thermal 37585 | 33 657 79 1275 409 . 346 2481 2137 191 342 . 370 477 710 159 . 6437 1673 6488 2086 2752 782 1954 2203 3544 Explosive 8847 | . . 418 . . . 736 . . 226 381 . 325 . . . . 2639 . . . . . . 1375 2747 Electromagnetic 579 | . . . . . . . . . . . . . . . . . 327 . . . . . 252 . . Impact . | . . . . . . . . . . . . . . . . . . . . . . . . . . Slashing 172 | . . . 172 . . . . . . . . . . . . . . . . . . . . . . Piercing 51 | . . . . . . . . . . . . . . . . . . . . . . . . . 51 Highest Corruption 14 | . . . . . . . . 3 2 3 . . . 1 . . . . 4 2 . . 1 6 14 Average Corruption 3 | . . . . . . . . 2 2 2 . . . 1 . . . . 1 1 . . 1 4 6 Corruption Purged 17 | . . . . . . . . 3 . 3 . . . 1 . . . . 8 2 . . . . . Corruption Blocked . | . . . . . . . . . . . . . . . . . . . . . . . . . . Effects 117 | . . . . . . . . 8 17 11 . . . 1 . . . . 4 2 . . . 20 54 Message Errors 25 | . . . . . . . . 2 3 3 . . . . . . . . . . . . . 2 15 Matter Fused 34 | . . . . . . . . 2 3 5 . . . . . . . . 2 2 . . . 3 17 Heat Flow Errors 19 | . . . . . . . . 1 2 . . . . . . . . . 1 . . . . 6 9 Energy Discharges 13 | . . . . . . . . 2 2 1 . . . . . . . . . . . . . 1 7 Parts Rejected 1 | . . . . . . . . . . . . . . . . . . . . . . . . 1 . Data Loss (minor) 12 | . . . . . . . . . 3 1 . . . . . . . . 1 . . . . 3 4 Data Loss (major) 2 | . . . . . . . . . . . . . . . . . . . . . . . . 2 . Misfires 8 | . . . . . . . . . 4 1 . . . 1 . . . . . . . . . 1 1 Alerts 1 | . . . . . . . . . . . . . . . . . . . . . . . . . 1 Weapon Failures 2 | . . . . . . . . 1 . . . . . . . . . . . . . . . 1 . Overload Shots 5 | . . . . . . . . . . . . . 2 . 1 . 2 . . . . . . . . Overflow Damage 2125 | . . 10 17 . . . 36 86 34 38 . 104 3 . . . 230 61 673 115 83 . 60 183 392 Projectiles 1664 | . . . 17 . . . 36 86 16 . . 66 3 . . . 119 61 673 115 83 . 53 183 153 Explosions 457 | . . 10 . . . . . . 18 38 . 38 . . . . 111 . . . . . 3 . 239 Melee 4 | . . . . . . . . . . . . . . . . . . . . . . . 4 . . Knockbacks 4 | . . . . . . . 4 . . . . . . . . . . . . . . . . . . Impact . | . . . . . . . . . . . . . . . . . . . . . . . . . . Kinetic 3 | . . . . . . . 3 . . . . . . . . . . . . . . . . . . Secondary 1 | . . . . . . . 1 . . . . . . . . . . . . . . . . . . Self-Inflicted Damage 590 | . . 11 . . . 107 2 . 45 14 . . . . . . 58 . . . . . 74 . 279 Shots 14 | . . 1 . . . 4 . . 2 1 . . . . . . 1 . . . . . 1 . 4 Rammed 1 | . . . . . . . 1 . . . . . . . . . . . . . . . . . . Targets Rammed 3 | . . . . . . . 1 . . . . . . . . . . . . . . . 2 . . Kicked 2 | . . . . . . . . . . . . . . . . . . . . . . . 2 . . Crushed . | . . . . . . . . . . . . . . . . . . . . . . . . . . Highest Temperature 335 | . 274 335 132 270 . 335 309 216 123 320 . . 3 10 6 . 203 . 196 . 15 . 22 204 257 Average Temperature 75 | . 73 120 32 114 . 123 61 83 65 158 . . 3 6 4 . 30 . 73 . 3 . 22 77 105 Received Heat Transfer 4429 | . 240 36 333 111 . 342 666 561 . 207 . 12 42 123 . . 170 36 76 45 144 27 313 39 906 Effects 2 | . . 1 . . . 1 . . . . . . . . . . . . . . . . . . . Energy Bleed 1 | . . . . . . 1 . . . . . . . . . . . . . . . . . . . Interference 1 | . . 1 . . . . . . . . . . . . . . . . . . . . . . . Siege Activations . | . . . . . . . . . . . . . . . . . . . . . . . . . . Robots Corrupted 2 | . . . . . . . . . . . . . . . . . 2 . . . . . . . . Combat Hostiles 2 | . . . . . . . . . . . . . . . . . 2 . . . . . . . . Parts Fried 5 | . . . . . . . . . . . . . . . 1 . . . . . . . 4 . . Impact Corruptions 1 | . . . . . . . . . . . . . . . . . . . . . . . 1 . . Robots Melted 8 | . . . . . . . 1 . . . . . . . 1 . 6 . . . . . . . . Combat Hostiles 8 | . . . . . . . 1 . . . . . . . 1 . 6 . . . . . . . . Parts Melted 50 | . 1 . 7 3 . 1 11 3 . . . . 2 5 2 . 6 . 1 2 1 1 . 1 3 Heat Transferred 37724 | 75 1739 185 3034 1147 . 777 4625 2775 259 444 . 518 711 1100 250 . 8887 850 3199 1150 1550 425 1075 1125 1824 Parts Sabotaged 2 | . . . . . . . . . . . . . . . . . . . . . . . . . 2 Parts Stolen . | . . . . . . . . . . . . . . . . . . . . . . . . . . Parts Stripped . | . . . . . . . . . . . . . . . . . . . . . . . . . . Power Chain Reactions 1 | . . . . . . . . . . . . . . . . . 1 . . . . . . . . Missiles Intercepted . | . . . . . . . . . . . . . . . . . . . . . . . . . . Alert | -11 -10 -10 -9 -9 -9 -8 -8 -7 -7 -7 -7 -6 -6 -6 -6 -6 -6 -5 -5 -5 -5 -5 -5 -4 -4 ------- Run | Scr Mat Min Mat Min Exi Min Mat Fac Low Low Dat Pro Fac Low Low Zio Dee Pro Fac Ext Cet Arc Hub Fac Arm Peak Influence 808 | 10 166 149 478 306 . 306 593 303 . . . . 272 . . . . . 498 385 379 151 550 748 808 Initial 311 | . 6 3 1 131 . . . 268 . . . . 133 . . . . . . 243 47 151 30 269 311 Average 216 | 6 83 112 318 150 . 100 147 184 . . . . 102 . . . . . 244 171 174 67 150 445 559 Maximum Alert Level 3 | . . . 2 1 . 1 2 1 . . . . 1 . . . . . 2 1 1 . 2 3 3 Low Security (%) 58 | 100 100 100 15 93 . 82 71 55 . . . . 85 . . . . . 49 76 72 100 70 . . Level 1 28 | . . . 76 6 . 17 14 44 . . . . 14 . . . . . 32 23 27 . 25 54 31 Level 2 11 | . . . 7 . . . 13 . . . . . . . . . . . 18 . . . 3 41 46 Level 3 1 | . . . . . . . . . . . . . . . . . . . . . . . . 4 21 Level 4 . | . . . . . . . . . . . . . . . . . . . . . . . . . . Level 5 . | . . . . . . . . . . . . . . . . . . . . . . . . . . High Security . | . . . . . . . . . . . . . . . . . . . . . . . . . . Max Security . | . . . . . . . . . . . . . . . . . . . . . . . . . . Squads Dispatched 57 | . 2 . 4 . . . 5 8 . . . 2 3 . . . . . 10 3 . . 4 4 12 Investigation 10 | . . . 1 . . . 1 2 . . . . 2 . . . . . 1 1 . . . . 2 Extermination 22 | . . . . . . . . 3 . . . . 1 . . . . . 8 . . . 1 3 6 Reinforcement 15 | . 2 . 3 . . . 3 . . . . . . . . . . . . 2 . . 3 1 1 Assault 6 | . . . . . . . . . . . . 2 . . . . . . 1 . . . . . 3 Garrison 4 | . . . . . . . 1 3 . . . . . . . . . . . . . . . . . Intercept . | . . . . . . . . . . . . . . . . . . . . . . . . . . Searches Triggered . | . . . . . . . . . . . . . . . . . . . . . . . . . . Data Miner Redirects 5 | . . . . . . . . . . . . . 1 . . . . . 2 . . . . . 2 Construction Impeded 1 | . . . . . . . . . . . . . . . . . . . . . . . 1 . . Haulers Reinforced . | . . . . . . . . . . . . . . . . . . . . . . . . . . Active Scanning Responses . | . . . . . . . . . . . . . . . . . . . . . . . . . . Cargo Convoy Interrupts . | . . . . . . . . . . . . . . . . . . . . . . . . . . Stealth | -11 -10 -10 -9 -9 -9 -8 -8 -7 -7 -7 -7 -6 -6 -6 -6 -6 -6 -5 -5 -5 -5 -5 -5 -4 -4 --------- Run | Scr Mat Min Mat Min Exi Min Mat Fac Low Low Dat Pro Fac Low Low Zio Dee Pro Fac Ext Cet Arc Hub Fac Arm Distress Signals 14 | . 1 . 3 . . . 3 . . . . . . . . . . . . 2 1 . 2 1 1 Communications Jammed . | . . . . . . . . . . . . . . . . . . . . . . . . . . Distress Signals . | . . . . . . . . . . . . . . . . . . . . . . . . . . Times Spotted 501 | . 19 9 42 10 . 16 54 23 3 9 . 11 7 6 6 . 75 17 45 26 18 5 13 27 60 Peak Tracking Total 37 | . 3 3 5 4 . 4 6 4 3 4 . 4 3 3 4 . 37 5 5 4 6 1 5 9 11 Tactical Retreats 17 | . . . . 2 . . 4 . . . . 1 1 1 . . . . 1 5 . . . . 2 Traps | -11 -10 -10 -9 -9 -9 -8 -8 -7 -7 -7 -7 -6 -6 -6 -6 -6 -6 -5 -5 -5 -5 -5 -5 -4 -4 ------- Run | Scr Mat Min Mat Min Exi Min Mat Fac Low Low Dat Pro Fac Low Low Zio Dee Pro Fac Ext Cet Arc Hub Fac Arm Traps Triggered 6 | . 1 . . . . . . . . . . . . . . . . . 2 . . . 1 . 2 Indirectly . | . . . . . . . . . . . . . . . . . . . . . . . . . . Trap Hack Attempts . | . . . . . . . . . . . . . . . . . . . . . . . . . . Triggered . | . . . . . . . . . . . . . . . . . . . . . . . . . . Disarmed . | . . . . . . . . . . . . . . . . . . . . . . . . . . Reprogrammed . | . . . . . . . . . . . . . . . . . . . . . . . . . . Reused . | . . . . . . . . . . . . . . . . . . . . . . . . . . Traps Extracted . | . . . . . . . . . . . . . . . . . . . . . . . . . . Installed . | . . . . . . . . . . . . . . . . . . . . . . . . . . Triggered 4 | . . . . . . . . . 1 1 . 1 . . 1 . . . . . . . . . . Most Traps Carried 3 | . . . . . . . . . 3 3 3 3 . . . . . . . . . . . . . Machines | -11 -10 -10 -9 -9 -9 -8 -8 -7 -7 -7 -7 -6 -6 -6 -6 -6 -6 -5 -5 -5 -5 -5 -5 -4 -4 ---------- Run | Scr Mat Min Mat Min Exi Min Mat Fac Low Low Dat Pro Fac Low Low Zio Dee Pro Fac Ext Cet Arc Hub Fac Arm Machines Disabled 33 | . . . . . . 1 3 1 . . . . 1 . . . 4 . 4 1 . . 10 6 2 Max in Single Turn 9 | . . . . . . 1 1 1 . . . . 1 . . . 1 . 1 . . . 9 1 1 Network Hub 1 | . . . . . . . . . . . . . . . . . . . . . . . 1 . . Energy Cycler 3 | . . . . . . . . . . . . . . . . . . . . 2 . . . . 1 Machines Sabotaged . | . . . . . . . . . . . . . . . . . . . . . . . . . . Garrisons Compromised . | . . . . . . . . . . . . . . . . . . . . . . . . . . Overloaded Fab Kills . | . . . . . . . . . . . . . . . . . . . . . . . . . . Hacking | -11 -10 -10 -9 -9 -9 -8 -8 -7 -7 -7 -7 -6 -6 -6 -6 -6 -6 -5 -5 -5 -5 -5 -5 -4 -4 --------- Run | Scr Mat Min Mat Min Exi Min Mat Fac Low Low Dat Pro Fac Low Low Zio Dee Pro Fac Ext Cet Arc Hub Fac Arm Machines Accessed 74 | . 9 1 10 . 1 . 11 11 1 . 4 . 8 . . 1 . . 5 8 . . 1 2 1 Terminals 44 | . 7 1 7 . . . 7 5 . . . . 4 . . . . . 4 6 . . 1 1 1 Fabricators 2 | . . . . . . . . . . . . . 1 . . . . . 1 . . . . . . Repair Stations 7 | . . . . . . . 2 2 . . . . 2 . . . . . . . . . . 1 . Recycling Units 8 | . 2 . 1 . . . . 2 . . . . 1 . . . . . . 2 . . . . . Scanalyzers 6 | . . . 2 . . . 2 2 . . . . . . . . . . . . . . . . . Garrison Access . | . . . . . . . . . . . . . . . . . . . . . . . . . . Total Hacks 248 | . 38 4 33 . 1 . 33 36 1 . 32 . 22 . . 7 . . 13 17 . . 2 8 1 Successful 162 | . 25 2 28 . 1 . 20 20 1 . 32 . 14 . . 7 . . 2 7 . . 1 2 . Failed 83 | . 12 2 4 . . . 12 16 . . . . 8 . . . . . 11 10 . . 1 6 1 Catastrophic 15 | . . 1 1 . . . 1 3 . . . . . . . . . . 2 5 . . . 1 1 Database Lockouts 3 | . 1 . 1 . . . 1 . . . . . . . . . . . . . . . . . . Manual 103 | . 26 3 17 . 1 . 13 10 . . . . 7 . . 5 . . 8 10 . . 2 . 1 Terminals 131 | . 30 4 16 . . . 21 15 . . . . 14 . . . . . 12 13 . . 2 3 1 Fabricators 4 | . . . . . . . . . . . . . 3 . . . . . 1 . . . . . . Repair Stations 20 | . . . . . . . 8 4 . . . . 3 . . . . . . . . . . 5 . Recycling Units 26 | . 8 . 5 . . . . 7 . . . . 2 . . . . . . 4 . . . . . Scanalyzers 26 | . . . 12 . . . 4 10 . . . . . . . . . . . . . . . . . Garrison Access . | . . . . . . . . . . . . . . . . . . . . . . . . . . Terminal Hacks 83 | . 16 2 6 . 1 . 6 4 1 . 32 . 5 . . 7 . . 1 2 . . . . . Record 11 | . . . . . . . . . . . 11 . . . . . . . . . . . . . . Part Schematic 23 | . 1 1 . . . . . . . . 12 . 2 . . 7 . . . . . . . . . Robot Schematic 6 | . . . . . . . . . . . 6 . . . . . . . . . . . . . . Robot Analysis 13 | . 8 . 2 . . . 3 . . . . . . . . . . . . . . . . . . Prototype ID Bank 8 | . 2 . . . . . 1 2 . . 3 . . . . . . . . . . . . . . Open Door 1 | . . . . . . . . . 1 . . . . . . . . . . . . . . . . Branch Access Points 2 | . . . . . . . . . . . . . 1 . . . . . 1 . . . . . . Emergency Access Points 1 | . 1 . . . . . . . . . . . . . . . . . . . . . . . . Alert Level 1 | . . . . . . . . . . . . . . . . . . . . 1 . . . . . Unreport Threat 2 | . . . . . . . . 1 . . . . . . . . . . . 1 . . . . . Locate Traps 7 | . 4 . 2 . . . 1 . . . . . . . . . . . . . . . . . . Recall Reinforcements 1 | . . . 1 . . . . . . . . . . . . . . . . . . . . . . Hauler Manifests 3 | . . . 1 . . . 1 . . . . . 1 . . . . . . . . . . . . Registered Components 2 | . . . . . . . . 1 . . . . 1 . . . . . . . . . . . . Zone Layout 1 | . . 1 . . . . . . . . . . . . . . . . . . . . . . . EX-Prototype ID Bank 1 | . . . . . 1 . . . . . . . . . . . . . . . . . . . . Fabricator Hacks 4 | . . . . . . . . . . . . . 3 . . . . . 1 . . . . . . Network Status 2 | . . . . . . . . . . . . . 1 . . . . . 1 . . . . . . Load Schematic 1 | . . . . . . . . . . . . . 1 . . . . . . . . . . . . Build 1 | . . . . . . . . . . . . . 1 . . . . . . . . . . . . Repair Station Hacks 9 | . . . . . . . 5 . . . . . 2 . . . . . . . . . . 2 . Scan Component 5 | . . . . . . . 3 . . . . . 1 . . . . . . . . . . 1 . Repair 4 | . . . . . . . 2 . . . . . 1 . . . . . . . . . . 1 . Recycling Unit Hacks 5 | . 2 . 2 . . . . 1 . . . . . . . . . . . . . . . . . Retrieve Matter 2 | . 1 . 1 . . . . . . . . . . . . . . . . . . . . . . Retrieve Components 3 | . 1 . 1 . . . . 1 . . . . . . . . . . . . . . . . . Scanalyzer 25 | . . . 12 . . . 3 10 . . . . . . . . . . . . . . . . . Insert Component 15 | . . . 7 . . . 2 6 . . . . . . . . . . . . . . . . . Analyze 10 | . . . 5 . . . 1 4 . . . . . . . . . . . . . . . . . Garrison Access Hacks . | . . . . . . . . . . . . . . . . . . . . . . . . . . Unauthorized Hacks 36 | . 7 . 8 . . . 6 5 . . . . 4 . . . . . . 5 . . 1 . . Terminals 21 | . 3 . 5 . . . 6 1 . . . . 3 . . . . . . 2 . . 1 . . Track 1 | . . . . . . . 1 . . . . . . . . . . . . . . . . . . Assimilate 2 | . . . 1 . . . 1 . . . . . . . . . . . . . . . . . . Botnet 14 | . 3 . 3 . . . 2 1 . . . . 2 . . . . . . 2 . . 1 . . Disrupt 1 | . . . . . . . 1 . . . . . . . . . . . . . . . . . . Operators 3 | . . . 1 . . . 1 . . . . . 1 . . . . . . . . . . . . Fabricators . | . . . . . . . . . . . . . . . . . . . . . . . . . . Repair Stations . | . . . . . . . . . . . . . . . . . . . . . . . . . . Recycling Units 15 | . 4 . 3 . . . . 4 . . . . 1 . . . . . . 3 . . . . . Reject 6 | . 1 . 1 . . . . 1 . . . . 1 . . . . . . 2 . . . . . Recyclers 4 | . 1 . 1 . . . . 2 . . . . . . . . . . . . . . . . . Mask 5 | . 2 . 1 . . . . 1 . . . . . . . . . . . 1 . . . . . Scanalyzers . | . . . . . . . . . . . . . . . . . . . . . . . . . . Garrison Access . | . . . . . . . . . . . . . . . . . . . . . . . . . . Data Cores Recovered 5 | . 2 . . . . . 1 . . . . . 1 . . . . . . . . . . 1 . Used 2 | . 1 . . . . . . . . . . . . . . . . . . . . . . 1 . Hacking Detections 62 | . 7 1 9 . . . 10 11 . . . . 7 . . . . . 5 8 . . 1 2 1 Full Trace Events 8 | . . . 1 . . . 1 2 . . . . 2 . . . . . 1 1 . . . . . Feedback Events . | . . . . . . . . . . . . . . . . . . . . . . . . . . Feedback Blocked . | . . . . . . . . . . . . . . . . . . . . . . . . . . Robot Schematics Acquired 6 | . . . . . . . . . . . 6 . . . . . . . . . . . . . . Robots Built . | . . . . . . . . . . . . . . . . . . . . . . . . . . Authchips . | . . . . . . . . . . . . . . . . . . . . . . . . . . Time . | . . . . . . . . . . . . . . . . . . . . . . . . . . Total Robot Build Rating . | . . . . . . . . . . . . . . . . . . . . . . . . . . Part Schematics Acquired 32 | . 1 1 4 . . . 1 4 . . 12 . 2 . . 7 . . . . . . . . . Parts Built 1 | . . . . . . . . . . . . . 1 . . . . . . . . . . . . Authchips . | . . . . . . . . . . . . . . . . . . . . . . . . . . Time 51 | . . . . . . . . . . . . . 51 . . . . . . . . . . . . Total Part Build Rating 1 | . . . . . . . . . . . . . 1 . . . . . . . . . . . . Parts Repaired 4 | . . . . . . . 2 . . . . . 1 . . . . . . . . . . 1 . Time 158 | . . . . . . . 60 . . . . . 44 . . . . . . . . . . 54 . Parts Recycled . | . . . . . . . . . . . . . . . . . . . . . . . . . . Recycled Matter . | . . . . . . . . . . . . . . . . . . . . . . . . . . Retrieved Matter 432 | . 231 . 201 . . . . . . . . . . . . . . . . . . . . . . Retrieved Components 25 | . 9 . 9 . . . . 7 . . . . . . . . . . . . . . . . . Parts Scanalyzed 9 | . . . 4 . . . 1 4 . . . . . . . . . . . . . . . . . Part Schematics Acquired 9 | . . . 4 . . . 1 4 . . . . . . . . . . . . . . . . . Parts Damaged 1 | . . . . . . . . 1 . . . . . . . . . . . . . . . . . Bothacking | -11 -10 -10 -9 -9 -9 -8 -8 -7 -7 -7 -7 -6 -6 -6 -6 -6 -6 -5 -5 -5 -5 -5 -5 -4 -4 ------------ Run | Scr Mat Min Mat Min Exi Min Mat Fac Low Low Dat Pro Fac Low Low Zio Dee Pro Fac Ext Cet Arc Hub Fac Arm Used RIF Installer . | . . . . . . . . . . . . . . . . . . . . . . . . . . Robots Hacked 2 | . . . . . . . . . . . 1 . . . . 1 . . . . . . . . . Non-combat . | . . . . . . . . . . . . . . . . . . . . . . . . . . Combat 2 | . . . . . . . . . . . 1 . . . . 1 . . . . . . . . . Robot Hacks Applied 2 | . . . . . . . . . . . 1 . . . . 1 . . . . . . . . . parse_system 2 | . . . . . . . . . . . 1 . . . . 1 . . . . . . . . . Relay Couplers Released . | . . . . . . . . . . . . . . . . . . . . . . . . . . Fabnet Peak Effective % . | . . . . . . . . . . . . . . . . . . . . . . . . . . Robots Rewired 19 | . . . . . . . . . . . . . . 2 3 . . . 4 10 . . . . . Allies Hacked 1 | . . . . . . . . . . . . . . . . . . . 1 . . . . . . Hacks Repelled . | . . . . . . . . . . . . . . . . . . . . . . . . . . Allies | -11 -10 -10 -9 -9 -9 -8 -8 -7 -7 -7 -7 -6 -6 -6 -6 -6 -6 -5 -5 -5 -5 -5 -5 -4 -4 -------- Run | Scr Mat Min Mat Min Exi Min Mat Fac Low Low Dat Pro Fac Low Low Zio Dee Pro Fac Ext Cet Arc Hub Fac Arm Total Allies 29 | . . 3 1 . . . 1 . . . . 1 . 2 3 2 . . 4 12 . . . . . Largest Group 5 | . . 3 3 1 1 1 1 1 . . . 1 . 2 5 4 4 1 4 4 3 . . . . Highest-Rated Group 254 | . . 40 40 10 10 10 10 10 . . . 96 . 51 144 254 254 31 165 107 99 . . . . Highest-Rated Ally 96 | . . 16 16 10 10 10 10 10 . . . 96 . 31 31 96 96 31 65 39 39 . . . . Total Orders 17 | . . . . . . . . . . . . . . . 10 . 4 . 2 1 . . . . . STAY 8 | . . . . . . . . . . . . . . . 4 . 2 . 1 1 . . . . . ROAM 1 | . . . . . . . . . . . . . . . 1 . . . . . . . . . . FOLLOW 7 | . . . . . . . . . . . . . . . 5 . 1 . 1 . . . . . . GUARD 1 | . . . . . . . . . . . . . . . . . 1 . . . . . . . . Ally Attacks 217 | . . . 18 . . . . . . . . 11 . 1 16 . 77 19 18 49 8 . . . . Total Damage 4160 | . . . 171 . . . . . . . . 404 . 20 234 . 1497 343 460 907 124 . . . . Kills 38 | . . . 6 . . . . . . . . 2 . . 3 . 15 3 4 5 . . . . . Allies Corrupted 1 | . . . . . . . . . . . . . . . . . . . 1 . . . . . . Allies Melted . | . . . . . . . . . . . . . . . . . . . . . . . . . . Intel | -11 -10 -10 -9 -9 -9 -8 -8 -7 -7 -7 -7 -6 -6 -6 -6 -6 -6 -5 -5 -5 -5 -5 -5 -4 -4 ------- Run | Scr Mat Min Mat Min Exi Min Mat Fac Low Low Dat Pro Fac Low Low Zio Dee Pro Fac Ext Cet Arc Hub Fac Arm Robot Analysis Total 13 | . 8 . 2 . . . 3 . . . . . . . . . . . . . . . . . . Derelict Logs Recovered 13 | . . 1 . 1 . . . . 1 1 . 1 . 3 3 1 . 1 . . . . . . . Drone Launches . | . . . . . . . . . . . . . . . . . . . . . . . . . . Drone Recoveries . | . . . . . . . . . . . . . . . . . . . . . . . . . . Exploration | -11 -10 -10 -9 -9 -9 -8 -8 -7 -7 -7 -7 -6 -6 -6 -6 -6 -6 -5 -5 -5 -5 -5 -5 -4 -4 ------------- Run | Scr Mat Min Mat Min Exi Min Mat Fac Low Low Dat Pro Fac Low Low Zio Dee Pro Fac Ext Cet Arc Hub Fac Arm Turns Passed 44445 | 68 1285 840 2650 923 815 1633 3631 1941 1150 967 145 1562 1428 1441 2551 1302 6232 2653 3986 1767 395 1035 880 1387 1778 Spaces Moved 17384 | 36 736 574 1206 336 335 580 1089 1073 727 509 94 875 640 838 1036 757 2214 758 1341 514 89 49 263 389 326 Core 5 | . . . . . . . . . . . . . . . . . . 5 . . . . . . . Treads 2908 | . . . 863 336 335 580 762 3 . . . . . . . . . . . . . . . . 29 Legs 4359 | 36 287 . . . . . . . . . . . . . . . 341 753 1341 514 89 49 263 389 297 Wheels 10112 | . 449 574 343 . . . 327 1070 727 509 94 875 640 838 1036 757 1873 . . . . . . . . Hover . | . . . . . . . . . . . . . . . . . . . . . . . . . . Flight . | . . . . . . . . . . . . . . . . . . . . . . . . . . Fastest Speed 100 | 120 100 115 115 240 240 240 115 130 145 150 150 150 145 160 160 160 160 240 210 240 240 240 240 210 210 Average Speed 184 | 120 133 115 153 240 240 240 204 132 149 150 150 155 154 160 171 170 187 263 228 269 249 240 240 210 233 Slowest Speed 3850 | 120 190 115 240 240 240 240 320 325 160 150 150 220 160 175 175 175 240 3850 270 270 270 240 240 240 320 Overloaded Moves . | . . . . . . . . . . . . . . . . . . . . . . . . . . Propulsion Burnouts . | . . . . . . . . . . . . . . . . . . . . . . . . . . Robots Hopped 1 | . . . . . . . . . . . . . . . . 1 . . . . . . . . . Cave-ins Triggered 1 | . . . . . . . . . . . . . . . . . . . . . . . . . 1 Time Travels 1 | . . . . . . . . . . . 1 . . . . . . . . . . . . . . Exploration Rate (%) 65 | 4 99 94 89 77 72 86 77 31 85 63 79 84 21 94 82 88 88 85 38 66 54 73 30 15 30 Regions Visited 25 Branch Regions 18 Pre-discovered Areas 6 | . . . . 2 . . . . . . 1 . . 1 . 2 . . . . . . . . . Known Exits Taken 19 | . . 1 1 1 1 1 1 1 1 1 1 1 1 1 1 1 1 1 1 . . . 1 . . Unknown Exits Taken 6 | 1 1 . . . . . . . . . . . . . . . . . . 1 1 1 . 1 . Scrap Searched 27 | . . 1 . 2 . 1 . . 1 5 . 2 . 5 3 3 . 4 . . . . . . . Spaces Dug 189 | . . 8 4 . . 14 11 4 14 21 . . 12 . 23 . . . 19 14 . . 6 19 20 Terrain Destroyed 910 | . . 28 4 . . 84 26 12 28 53 . 45 21 8 26 . 17 17 59 42 13 11 202 78 136 Melee 4 | . . . 3 . . . . 1 . . . . . . . . . . . . . . . . . Projectile 364 | . . 9 1 . . . 26 11 2 3 . 3 21 8 26 . 17 17 59 42 13 11 27 30 38 AOE 542 | . . 19 . . . 84 . . 26 50 . 42 . . . . . . . . . . 175 48 98 Terrain Rammed . | . . . . . . . . . . . . . . . . . . . . . . . . . . Walls Destroyed . | . . . . . . . . . . . . . . . . . . . . . . . . . . Machines Disabled . | . . . . . . . . . . . . . . . . . . . . . . . . . . Actions | -11 -10 -10 -9 -9 -9 -8 -8 -7 -7 -7 -7 -6 -6 -6 -6 -6 -6 -5 -5 -5 -5 -5 -5 -4 -4 --------- Run | Scr Mat Min Mat Min Exi Min Mat Fac Low Low Dat Pro Fac Low Low Zio Dee Pro Fac Ext Cet Arc Hub Fac Arm Total 27572 | 47 927 667 1782 392 347 768 2254 1378 761 648 97 1021 1049 900 1771 769 4130 1364 2066 808 184 943 430 858 1211 Wait 7787 | 1 94 30 367 18 . 138 947 102 4 85 . 85 327 15 676 2 1528 547 525 129 25 862 118 390 772 Move 17357 | 35 735 573 1205 335 334 579 1088 1072 726 508 93 874 639 837 1035 754 2213 757 1340 513 88 48 262 388 326 Hop 1 | . . . . . . . . . . . . . . . . 1 . . . . . . . . . Pick Up 242 | 2 15 4 26 2 2 3 22 28 5 1 . 10 20 2 1 4 54 7 9 8 7 . . 2 8 Fast Attach 38 | 1 4 . 1 . 4 1 4 . . . . . 1 1 . . 4 3 2 . 4 3 . 4 1 Attach 49 | . 1 1 8 . . 2 8 6 1 1 1 . 3 . . . 7 1 3 . 1 . . . 5 Detach 15 | . 1 . . . . . . 1 . . . . . . . . 6 . . . . 2 . 2 3 Swap 269 | 1 7 7 35 4 1 8 33 38 5 16 2 14 12 14 15 2 25 5 16 2 1 . 1 3 2 Drop 292 | . 12 3 19 1 6 3 24 22 4 1 . 8 22 3 1 5 73 17 16 6 14 11 1 9 11 Fire 1310 | 7 58 49 111 32 . 34 127 108 16 36 . 30 25 15 20 1 220 27 108 46 44 17 41 60 78 Melee 17 | . . . 10 . . . . 1 . . 1 . . . . . . . . . . . . . 5 Ram 1 | . . . . . . . 1 . . . . . . . . . . . . . . . . . . Kick 2 | . . . . . . . . . . . . . . . . . . . . . . . 2 . . Crush . | . . . . . . . . . . . . . . . . . . . . . . . . . . Escape Stasis 10 | . . . . . . . . . . . . . . . . . . . 5 . . . 5 . . Rewire 182 | . . . . . . . . . . . . . . 13 23 . . . 42 104 . . . . . Trap . | . . . . . . . . . . . . . . . . . . . . . . . . . . Miscellaneous . | . . . . . . . . . . . . . . . . . . . . . . . . . . Route ------- -11/Scrapyard -10/Materials (discovered 4 exits: *Mat x3 / *Min) -10/Mines (discovered 2 exits: *Mat x2) -9/Materials (discovered 4 exits: *Mat x2 / *Min / *Sto) -9/Mines (discovered 2 exits: *Mat / *Exi) -9/Exiles (discovered 2 exits: *Min x2) -8/Mines -8/Materials (discovered 2 exits: *Fac x2) -7/Factory (discovered 2 exits: *Fac / *Low) -7/Lower Caves -7/Lower Caves (discovered 2 exits: *Fac / *Dat) -7/Data Miner -6/Proximity Caves -6/Factory (discovered 5 exits: Fac x3 / *Low x2) -6/Lower Caves -6/Lower Caves (discovered 2 exits: *Fac / *Zio) -6/Zion (discovered 2 exits: *Dee / *Pro) -6/Deep Caves -5/Proximity Caves -5/Factory (discovered 6 exits: *Fac x2 / *Upp x2 / *Ext x2) -5/Extension (discovered 2 exits: *Fac / *Cet) -5/Cetus -5/Archives (discovered 3 exits: *Fac / *Hub x2) -5/Hub_04(d) (discovered 2 exits: *Fac x2) -4/Factory -4/Armory History --------- Turn | Location | Event 3 | -11/Scrapyard | Discovered new exit (range 3) 69 | -11/Scrapyard | Entered Materials 278 | -10/Materials | Discovered new exit (range 3) 314 | -10/Materials | Build established: Mutant 526 | -10/Materials | Discovered new exit (range 15) 804 | -10/Materials | Discovered new exit (range 7) 834 | -10/Materials | Central database locked down 1084 | -10/Materials | Discovered new exit (range 10) 1354 | -10/Materials | Entered Mines 1482 | -10/Mines | YI-UF0 nonchalantly dropped a Grenade Launcher on the ground 1524 | -10/Mines | Destroyed YI-UF0 1535 | -10/Mines | Found Prototype Launcher 1553 | -10/Mines | A weapon hastily lodged in a ceiling crevice suddenly fell to the ground 1618 | -10/Mines | Discovered new exit (range 7) 1740 | -10/Mines | Excavation squad dispatched 1740 | -10/Mines | A large section of the Mines collapsed 1840 | -10/Mines | Identified YI-UF0's Doublenader 1937 | -10/Mines | Learned Materials terminal intel 1956 | -10/Mines | Assisted by bots powering up and referring to "LRC-V3" 2013 | -10/Mines | Discovered new exit (range 12) 2118 | -10/Mines | Found a damaged Exp. Sensor Array with a note attached 2120 | -10/Mines | Found Prototype Device 2132 | -10/Mines | Build established: Scavenger-Mutant 2193 | -10/Mines | Identified exit to Materials 2194 | -10/Mines | Entered Materials 2194 | -9/Materials | Accompanied by 3 allies 2194 | -9/Materials | Evolved 2 slots: Utility x2 2195 | -9/Materials | Loaded intel: 12 terminal locations 2445 | -9/Materials | Discovered new exit (range 7) 2753 | -9/Materials | Lost 4 parts (1p1n1u1w) 2786 | -9/Materials | Central database locked down 2802 | -9/Materials | Discovered new exit (range 16) 3068 | -9/Materials | Destroyed 7 combat bots 3273 | -9/Materials | Discovered new exit (range 10) 3316 | -9/Materials | Identified exit to Storage 4013 | -9/Materials | Identified Exp. Sensor Array 4064 | -9/Materials | Discovered new exit (range 15) 4120 | -9/Materials | Identified exit to Materials 4153 | -9/Materials | Core integrity fell below 50% 4840 | -9/Materials | Identified exit to Mines 4844 | -9/Materials | Entered Mines 4844 | -9/Mines | Accompanied by 1 ally 5314 | -9/Mines | Learned location of Storage (-9) 5422 | -9/Mines | Discovered exit to Materials (range 6) 5729 | -9/Mines | Build established: Mutant 5757 | -9/Mines | Deemed a non-threat by the Exiles lab entrance 5757 | -9/Mines | Discovered new exit (range 5) 5765 | -9/Mines | Identified exit to Exiles 5767 | -9/Mines | Entered Exiles 5767 | -9/Exiles | Accompanied by 1 ally 5803 | -9/Exiles | Discovered new exit (range 14) 5832 | -9/Exiles | Identified exit to Mines 5883 | -9/Exiles | Met 8R-AWN 5923 | -9/Exiles | Met EX-HEX 5993 | -9/Exiles | Met EX-BIN 6027 | -9/Exiles | Aligned with FarCom system 6029 | -9/Exiles | Given EX-Vault access code 6089 | -9/Exiles | Opened EX-Vault 6108 | -9/Exiles | Found Chronowheel 6112 | -9/Exiles | Found Longsword +1 6117 | -9/Exiles | Found AWS/Thermal 6174 | -9/Exiles | Warned to stay clear of 0b10 Research branches 6244 | -9/Exiles | Met EX-DEC 6560 | -9/Exiles | Discovered exit to Mines (range 10) 6582 | -9/Exiles | Left Exiles lab with Chronowheel 6582 | -9/Exiles | Entered Mines 6582 | -8/Mines | Accompanied by 1 ally 7010 | -8/Mines | Build established: Skirmisher 7503 | -8/Mines | Build established: Scavenger-Mutant 7592 | -8/Mines | Core integrity fell below 20% 7877 | -8/Mines | Discovered exit to Materials (range 7) 8215 | -8/Mines | Entered Materials 8215 | -8/Materials | Evolved 2 slots: Utility x2 8981 | -8/Materials | Repaired Gauss Rifle 9766 | -8/Materials | Build established: Mutant 10690 | -8/Materials | Build established: Skirmisher 11149 | -8/Materials | Central database locked down 11284 | -8/Materials | Garrison activated, responded to threat 11501 | -8/Materials | Discovered new exit (range 19) 11648 | -8/Materials | Identified exit to Factory 11775 | -8/Materials | Repaired Hrd. Light Armor Plating 11797 | -8/Materials | Discovered exit to Factory (range 10) 11846 | -8/Materials | Entered Factory 11846 | -7/Factory | Accompanied by 1 ally 11846 | -7/Factory | Evolved 2 slots: Power x1, Utility x1 11926 | -7/Factory | Build established: Scavenger-Mutant 12492 | -7/Factory | Discovered new exit (range 6) 12499 | -7/Factory | Identified exit to Lower Caves 12521 | -7/Factory | Build established: Mutant 12676 | -7/Factory | Discovered new exit (range 17) 12828 | -7/Factory | Found Powered Armor 12831 | -7/Factory | Found Powered Armor 12887 | -7/Factory | Identified exit to Factory 13304 | -7/Factory | Garrison activated, responded to threat 13657 | -7/Factory | Build established: Scavenger-Mutant 13787 | -7/Factory | Entered Lower Caves 14095 | -7/Lower Caves | Learned 8 Factory zone layouts 14363 | -7/Lower Caves | Build established: Scavenger-Skirmisher 14760 | -7/Lower Caves | Spotted B-75 Beast 14802 | -7/Lower Caves | Discovered new exit (range 7) 14833 | -7/Lower Caves | Identified exit to Lower Caves 14937 | -7/Lower Caves | Entered another Lower Caves area 14954 | -7/Lower Caves | Attracted the attention of an 0b10 checkpoint 15132 | -7/Lower Caves | Discovered exit to Factory (range 17) 15260 | -7/Lower Caves | Learned 8 Factory zone layouts 15769 | -7/Lower Caves | Discovered new exit (range 15) 15789 | -7/Lower Caves | Identified exit to Data Miner 15904 | -7/Lower Caves | Entered Data Miner 15904 | -7/Data Miner | Discovered new exit (range 6) 15919 | -7/Data Miner | Identified exit to Proximity Caves 15933 | -7/Data Miner | Met Data Miner 15970 | -7/Data Miner | Learned location of Section 7 (-2) 15970 | -7/Data Miner | Acquired the access code to Warlord's prototype stash 15993 | -7/Data Miner | Received God Mode back door access code from Data Miner 16008 | -7/Data Miner | Activated Chronowheel 16008 | -7/Data Miner | Spacetime reconverged on an earlier point 16049 | -7/Data Miner | Entered Proximity Caves 16162 | -6/Proximity Caves | Escorted by Enhanced Grunt 16448 | -6/Proximity Caves | Learned location of 2 exits from Factory 17017 | -6/Proximity Caves | Attracted the attention of an 0b10 checkpoint 17143 | -6/Proximity Caves | Derelict sapper outpost attacked 17299 | -6/Proximity Caves | Found Prototype Device 17342 | -6/Proximity Caves | Discovered exit to Factory (range 17) 17391 | -6/Proximity Caves | Identified Exp. Thermal Shield 17611 | -6/Proximity Caves | Entered Factory 17611 | -6/Factory | Evolved 2 slots: Utility x2 17612 | -6/Factory | Identified exit to Lower Caves 17612 | -6/Factory | Identified exit to Factory 17955 | -6/Factory | Fabricated Cargo Storage Unit? 18440 | -6/Factory | Repaired Powered Armor 18837 | -6/Factory | Incoming investigation squad redirected 18913 | -6/Factory | Build established: Mutant 19039 | -6/Factory | Entered Lower Caves 19135 | -6/Lower Caves | Learned Factory emergency access door positions 19326 | -6/Lower Caves | Build established: Scavenger-Skirmisher 19815 | -6/Lower Caves | Learned Factory security intel 20118 | -6/Lower Caves | Attacked by a faux Warlord 20311 | -6/Lower Caves | Discovered new exit (range 2) 20312 | -6/Lower Caves | Identified exit to Lower Caves 20480 | -6/Lower Caves | Entered another Lower Caves area 20480 | -6/Lower Caves | Accompanied by 2 allies 20488 | -6/Lower Caves | Encountered a Warlord checkpoint 20608 | -6/Lower Caves | Build established: Skirmisher 20617 | -6/Lower Caves | Attacked by a delusional Derelict stockpiling Unaware 20856 | -6/Lower Caves | Discovered exit to Factory (range 16) 20897 | -6/Lower Caves | Learned 4 Factory zone layouts 20921 | -6/Lower Caves | Learned Factory stockpile data 21961 | -6/Lower Caves | Spotted B-75 Beast 22151 | -6/Lower Caves | Learned Factory garrison access intel 22189 | -6/Lower Caves | Discovered new exit (range 7) 22198 | -6/Lower Caves | Identified exit to Zion 23031 | -6/Lower Caves | Entered Zion 23031 | -6/Zion | Accompanied by 2 allies 23122 | -6/Zion | Discovered new exit (range 14) 23145 | -6/Zion | Identified exit to Proximity Caves 23575 | -6/Zion | Learned location of Warlord (-5) 23787 | -6/Zion | Rebuked by Imprinter 23865 | -6/Zion | Identified exit to Deep Caves 23881 | -6/Zion | Acquired unknown access codes intercepted by a Zionite 23961 | -6/Zion | Given A8's code to call for help 24074 | -6/Zion | Build established: Mutant 24280 | -6/Zion | Opened final containment barrier to the Deep Caves 24313 | -6/Zion | Enhanced Grunt warped into view, answering call for help 24316 | -6/Zion | Enhanced Grunt warped into view, answering call for help 24324 | -6/Zion | Saw the warning signs outside the Deep Caves entrance 24333 | -6/Zion | Entered Deep Caves 24333 | -6/Deep Caves | Accompanied by 4 allies 24708 | -6/Deep Caves | Z-Facility disabled 24708 | -6/Deep Caves | Attacked by Z-Imprinter 24723 | -6/Deep Caves | Destroyed Z-Imprinter 25205 | -6/Deep Caves | Discovered new exit (range 7) 25215 | -6/Deep Caves | Identified exit to Proximity Caves 25597 | -6/Deep Caves | Found Prototype Protection 25700 | -6/Deep Caves | Identified Zio. Weapon Casing 25831 | -6/Deep Caves | Found Prototype Protection 25937 | -6/Deep Caves | Identified Zio. Heavy Carapace 26034 | -6/Deep Caves | Found Zio. Heavy Carapace 26037 | -6/Deep Caves | Found Zio. Weapon Casing 26053 | -6/Deep Caves | Found Zio. Weapon Casing 26114 | -6/Deep Caves | Found Zio. Weapon Casing 26261 | -6/Deep Caves | Spotted as-87738 26288 | -6/Deep Caves | Destroyed as-87738 26349 | -6/Deep Caves | Spotted as-68631 26421 | -6/Deep Caves | Triggered Deep Caves wall 26421 | -6/Deep Caves | Spotted AS-16630 26421 | -6/Deep Caves | Spotted AS-46469 26421 | -6/Deep Caves | Destroyed AS-46469 26424 | -6/Deep Caves | Destroyed AS-16630 26472 | -6/Deep Caves | Destroyed 36 combat bots 26560 | -6/Deep Caves | Exposed GOLEM chamber 26596 | -6/Deep Caves | Destroyed as-68631 26701 | -6/Deep Caves | Found Cloak of Protection 27331 | -6/Deep Caves | Build established: Hauler-Mutant 27600 | -6/Deep Caves | Found GOLEM Unit 27647 | -6/Deep Caves | Found GOLEM Unit 27658 | -6/Deep Caves | Found GOLEM Unit 27700 | -6/Deep Caves | Found GOLEM Unit 27811 | -6/Deep Caves | Found GOLEM Unit 27815 | -6/Deep Caves | Found GOLEM Unit 27820 | -6/Deep Caves | Found GOLEM Unit 27832 | -6/Deep Caves | Found GOLEM Unit 27838 | -6/Deep Caves | Found GOLEM Unit 28142 | -6/Deep Caves | Build established: Hauler-Golem 28472 | -6/Deep Caves | Found GOLEM Unit 28477 | -6/Deep Caves | Found GOLEM Unit 28533 | -6/Deep Caves | Found GOLEM Unit 28599 | -6/Deep Caves | Found GOLEM Unit 28606 | -6/Deep Caves | Found GOLEM Unit 28647 | -6/Deep Caves | Found GOLEM Unit 28710 | -6/Deep Caves | Found GOLEM Unit 28728 | -6/Deep Caves | Found GOLEM Unit 28758 | -6/Deep Caves | Build established: Hauler-Mutant 28780 | -6/Deep Caves | Found GOLEM Unit 29139 | -6/Deep Caves | Build established: Hauler-Golem 30565 | -6/Deep Caves | Entered Proximity Caves 30565 | -5/Proximity Caves | Accompanied by 1 ally 31154 | -5/Proximity Caves | Spotted B-75 Beast 32087 | -5/Proximity Caves | Learned Factory stockpile data 32272 | -5/Proximity Caves | Discovered exit to Factory (range 4) 33218 | -5/Proximity Caves | Entered Factory 33218 | -5/Factory | Evolved 2 slots: Utility x2 33219 | -5/Factory | Identified exit to Upper Caves 33224 | -5/Factory | Loaded intel: 4 garrison access locations 33528 | -5/Factory | P-70 Sage assimilated allied Slayer 6a 35180 | -5/Factory | Discovered new exit (range 22) 35744 | -5/Factory | Incoming investigation squad redirected 36010 | -5/Factory | Build established: Hacker-Golem 36329 | -5/Factory | Discovered new exit (range 19) 36392 | -5/Factory | Build established: Hauler-Golem 36402 | -5/Factory | Identified exit to Factory 36583 | -5/Factory | Identified exit to Extension 37118 | -5/Factory | First assault squad dispatched 37145 | -5/Factory | Incoming assault squad redirected 37204 | -5/Factory | Entered Extension 37431 | -5/Extension | Energy Cycler disabled 37431 | -5/Extension | Rescued a captive Derelict 37433 | -5/Extension | Rescued a captive Derelict 37433 | -5/Extension | Rescued a captive Derelict 37434 | -5/Extension | Rescued a captive Derelict 37434 | -5/Extension | Rescued a captive Derelict 37435 | -5/Extension | Rescued a captive Derelict 37436 | -5/Extension | Rescued a captive Derelict 38938 | -5/Extension | Discovered exit to Factory (range 10) 38941 | -5/Extension | Discovered new exit (range 6) 38971 | -5/Extension | Entered Cetus 38971 | -5/Cetus | Accompanied by 3 allies 39000 | -5/Cetus | Spotted Cetus Guard 39000 | -5/Cetus | Spotted Cetus Guard 39002 | -5/Cetus | Spotted Cetus Guard 39002 | -5/Cetus | Spotted Cetus Guard 39043 | -5/Cetus | Destroyed Cetus Guard 39049 | -5/Cetus | Destroyed Cetus Guard 39059 | -5/Cetus | Destroyed Cetus Guard 39316 | -5/Cetus | Discovered new exit (range 21) 39333 | -5/Cetus | Destroyed 9 combat bots 39366 | -5/Cetus | Entered Archives 40333 | -5/Archives | Discovered new exit (range 22) 40350 | -5/Archives | Discovered new exit (range 22) 40360 | -5/Archives | Discovered exit to Factory (range 22) 40401 | -5/Archives | Entered Hub_04(d) 40791 | -5/Hub_04(d) | Discovered exit to Factory (range 5) 40832 | -5/Hub_04(d) | Spotted B-75 Beast 40847 | -5/Hub_04(d) | Discovered exit to Factory (range 18) 41251 | -5/Hub_04(d) | Network Hub disabled 41281 | -5/Hub_04(d) | Entered Factory 41281 | -4/Factory | Evolved 2 slots: Utility x2 41451 | -4/Factory | Repaired Centrium Medium Armor Plating 42330 | -4/Factory | Discovered new exit (range 19) 42439 | -4/Factory | Destroyed 13 combat bots 42668 | -4/Factory | Entered Armory 43116 | -4/Armory | Found Fusion Bomb Launcher 43120 | -4/Armory | Found Fusion Bomb Launcher 43272 | -4/Armory | Incoming investigation squad redirected 43450 | -4/Armory | First assault squad dispatched 43461 | -4/Armory | Energy Cycler disabled 43521 | -4/Armory | Lost 7 parts (1p1n4u1w) 43543 | -4/Armory | Destroyed 16 combat bots 43978 | -4/Armory | Incoming assault squad redirected 44345 | -4/Armory | Crushed by falling debris 44411 | -4/Armory | System corruption reached 10% 44417 | -4/Armory | Found Enh. Force Lance 44441 | -4/Armory | Core integrity fell below 50% 44446 | -4/Armory | Self-destructed Last Messages --------------- 44425_ Acquired 50 matter. 44425_ Zio. Biocell blown off. 44426_ Extracted 520 energy. 44426_ Acquired Zio. Biocell. 44427_ System corrupted: Matter fused (-6). 44428_ E-15 Imp destroyed. 44428_ Asb. Focal Cannon destroyed. 44428_ Asb. Nanovents destroyed. 44428_ X-77 Beamer suffers critical hit (Burn). 44429_ Acquired 16 matter. 44431_ Asb. Alloy Armor destroyed. 44434_ Zio. Biocell destroyed. 44435_ Penetrated by Slug. 44435_ Slug penetrates Reinforced Shell. 44438_ Asb. Flux Generator destroyed. 44442_ Asb. Combat Suite destroyed. 44443_ Asb. Nanovents destroyed. 44444_ Asb. Alloy Leg destroyed. 44445_ Asb. Biocell Array integration complete. 44446_ GOLEM Unit beginning Asb. Alloy Leg integration. Map ----- +----------------------------------------------------+ | ???????????????????????????????????????????? "? | | ????????????????????????????????????????????" "? | | ???????????????????????????????????????????"" "" | | ???????????????????????????????????????????"" "" | | ??????????????????????????????????????????#"" "" | | ??????????????????????????????????????????#"T "" | | ??????????????????????????????????????????#"" "" | | ??????????????????????????????????????????#"" | | ??????????????????????????????????????????#"" "" | | ??????????????????????????????????????????#"" "" | | ???????????????????????????????????????????" "" | | ????????????????????????????????????????????# "" | | ????????????????????????????????????????????# "" | | ????????????????????????????????????????????# "" | | ??????????????????????????????????????####### "" | | ?????????????????????????????????????#### " | | ????????????????????????????????????######### | | ???????H???????????????????????????## ##????###### | | ??????????????????????????????????## ##??????????? | | ?????????????????????????????????## ##???????????? | | ????????????????????????????????## ##????????????? | | ?????????????????????????####??## ##?????????????? | | ?????????????????????????? #?## ##??????????????? | | ??????????????????????""""" ### ##???????????????? | | ??????????????????????"///" ##"##????????????????? | | ???????s???????# ????"//@" + #?????????????????? | | ???????????????# ""xl" ## #?????????????????? | | ???????????????# |xgg| ## #?????????????????? | | ???????????????# /[pgi[ ## #?????????????????? | | ???????????????# =p[h ## #?????????????????? | | ???????????????# ! ## ?????????????????? | | ???????????????# = ####?????????????????? | | ???????????????# %! #????????????????????? | | ???????????????# %|[ h #????????????????????? | | ???????????????######%+#;####????????????????????? | | ???????????????????? !![ ????????????????????????? | | ??????????????????? ????????????????????????? | | ??????????????????? ????????????????????????? | | ?????????????????? ????????????????????????? | | ?????????????????####+?##????????????????????????? | | ?????????????????????????????????????????????????? | | ?????????????????????????????????????????????????? | | ?????????????????????????????????????????????????? | | ?????????????????????????????????????????????????? | | ?????????????????????????????????????????????????? | | ?????????????????????????????????????????????????? | | ?????????????????????????????????????????????????? | | | | | | | +----------------------------------------------------+ Best States ------------- Heat Dissipation 88 Energy Generation 45 Energy Capacity 1100 Matter Stores 300 Matter Capacity 300 Sight Range 22 Robot Scan Range 20 Terrain Scan Range 16 Terrain Scan Density 10 Jamming Range 14 Cloak Strength 5 Additional Mass Support 20 Armor Coverage 1600 Resistance: KI 20 Resistance: TH 30 Resistance: EX 15 Resistance: EM 15 Resistance: I 15 Resistance: S 15 Resistance: P 15 Weapon Shielding 100 Weapon Cycling 20 Phase Shifting 8 Evasion (%) 55 Targeting Accuracy 8 Core Analysis 8 Recoil Reduction 2 Energy Filtering 50 Offensive Hacking 28 Defensive Hacking 12 Item Schematics ----------------- Cargo Storage Unit | -10/Materials | Hacked Huge Storage Unit | -10/Mines | Hacked Exp. Sensor Array | -9/Materials | Scanalyzed Imp. EM Shotgun | -9/Materials | Scanalyzed Adv. Visual Processing Unit | -9/Materials | Scanalyzed Hvy. Hammer | -9/Materials | Scanalyzed Imp. Signal Interpreter | -8/Materials | Scanalyzed Prc. Assault Rifle | -7/Factory | Scanalyzed Machine Analyzer | -7/Factory | Scanalyzed System Restoration Module | -7/Factory | Scanalyzed EM Pulse Cannon | -7/Factory | Scanalyzed Combat Drone Bay | -7/Data Miner | Free Lgt. Regenerative Plating | -7/Data Miner | Free Cld. Aerolev Unit | -7/Data Miner | Free Thermal Defense Suite | -7/Data Miner | Free Ion Burst Cannon | -7/Data Miner | Free Arm. Medium Treads | -7/Data Miner | Free Adv. System Restoration Module | -7/Data Miner | Free Tesla Rifle | -7/Data Miner | Free Fusion Compressor | -7/Data Miner | Free Lrn. Proton Cannon | -7/Data Miner | Free Adv. Thermal Shield | -7/Data Miner | Free Adv. Medium Treads | -7/Data Miner | Free Adv. Hacking Suite | -6/Factory | Hacked Enh. Optical Array | -6/Factory | Hacked Beamcaster | -6/Zion | Free Riot Gun | -6/Zion | Free Hvy. Riot Gun | -6/Zion | Free Battle Rifle | -6/Zion | Free Hvy. Battle Rifle | -6/Zion | Free Battle Cannon | -6/Zion | Free Ripper | -6/Zion | Free Robot Schematics ------------------ H-55 Commando | -7/Data Miner | Free X-62 Marksman | -7/Data Miner | Free L-41 Fighter | -7/Data Miner | Free R-10 Processor | -7/Data Miner | Free M-22 Extractor | -7/Data Miner | Free I-47 Archangel | -7/Data Miner | Free Fabricated ------------ Cargo Storage Unit | x1 | -6/Factory Alien Tech Used ----------------- None Achievements -------------- None Challenges ------------ None Game ------ Seed GaussMiniSlayer Manual? 0 Play Time 07:27:59 Cumulative 131.8 hours Start 2022.04.20 @ 19:00:31 End 2022.04.21 @ 20:01:10 Sessions 35 Manual Loads 0 Difficulty Rogue Special Mode None Game No. 24 Rogue 17 Adventurer 1 Explorer 6 Win Type - Total 5 Types 3/1/1/0/0/0/0/0/0 Lore% 68 Gallery% 62 Achievement% 61 Wizard Run 0 Options --------- ASCII 0 Keyboard 0 Movement Mouse Keybinds 0 Fullscreen 1 Font 18/SmallcapsGlow Map View 76x50 Tactical HUD 1 Map Filters NONE Filters NONE Steam 1 RUN: e31590bb-9350-4b82-b2e6-66a2f42d643a